bitfinex-derivatives/quotes_BTCF0:USTF0_20251125
["timestamp","ask_amount","ask_price","bid_price","bid_amount"]
[1764036513673,0.00117077,87824.0,87823.0,0.12781803]
[1764036513878,0.00117077,87824.0,87823.0,0.13920853]
[1764036515276,0.3608,87830.0,87829.0,0.1751997]
[1764036515572,0.02938,87831.0,87830.0,0.12562]
[1764036515774,0.02938,87831.0,87830.0,0.12781803]
[1764036516469,0.00017077,87839.0,87838.0,0.1370085]
[1764036516671,0.00017077,87839.0,87838.0,0.13920653]
[1764036517776,0.00117077,87839.0,87838.0,0.13920653]
[1764036517969,0.0113874,87847.0,87838.0,0.13920653]
[1764036517970,0.0113874,87847.0,87846.0,0.1370075]
[1764036518170,0.3608,87850.0,87849.0,0.1370071]
[1764036518377,0.3608,87850.0,87849.0,0.13920513]
[1764036518570,0.0113864,87855.0,87851.0,0.0113868]
[1764036518771,0.0113864,87855.0,87854.0,0.12781803]
[1764036518972,0.2913864,87855.0,87854.0,0.12781803]
[1764036519277,0.0113864,87855.0,87854.0,0.12781803]
[1764036519469,0.011386,87858.0,87856.0,0.03819]
[1764036519669,0.471386,87858.0,87857.0,0.12781803]
[1764036519875,0.3608,87860.0,87858.0,0.0113859]
[1764036520078,0.00017077,87863.0,87862.0,0.12562]
[1764036520265,0.00017077,87863.0,87862.0,0.12781803]
[1764036520968,0.37907077,87863.0,87862.0,0.12781803]
[1764036521164,0.37907077,87863.0,87862.0,0.00219803]
[1764036521478,0.11229,87851.0,87850.0,0.15473]
[1764036521676,0.49229,87851.0,87850.0,0.15692803]
[1764036522480,0.5036768,87851.0,87850.0,0.15692803]
[1764036522976,0.5036768,87851.0,87850.0,0.00219803]
[1764036523681,0.5036768,87851.0,87850.0,0.06053803]
[1764036523871,0.5036768,87851.0,87850.0,0.11873803]
[1764036523872,0.5236768,87851.0,87850.0,0.11873803]
[1764036524276,0.5246768,87851.0,87850.0,0.11873803]
[1764036524679,0.5236768,87851.0,87850.0,0.11873803]
[1764036524874,0.5246768,87851.0,87850.0,0.11873803]
[1764036525380,0.5246768,87851.0,87850.0,0.00219803]
[1764036525578,0.5246768,87851.0,87850.0,0.06053803]
[1764036525780,0.7047568,87851.0,87850.0,0.11873803]
[1764036525970,0.7047568,87851.0,87850.0,0.00219803]
[1764036526177,0.7047568,87851.0,87846.0,0.00017077]
[1764036526178,0.1236774,87847.0,87846.0,0.00017077]
[1764036526476,0.5736774,87847.0,87846.0,0.11671077]
[1764036527178,0.5736774,87847.0,87846.0,0.00017077]
[1764036527871,0.5736774,87847.0,87846.0,0.05851077]
[1764036528072,0.5736774,87847.0,87846.0,0.00017077]
[1764036528368,0.9344774,87847.0,87846.0,0.00017077]
[1764036528570,0.9354774,87847.0,87846.0,0.00017077]
[1764036529976,0.9344774,87847.0,87846.0,0.00017077]
[1764036530183,0.9354774,87847.0,87846.0,0.00017077]
[1764036530480,0.9354774,87847.0,87846.0,0.0023688]
[1764036530679,0.9354774,87847.0,87846.0,0.1189088]
[1764036531079,0.9354774,87847.0,87846.0,0.0023688]
[1764036532583,0.9354774,87847.0,87846.0,0.0607088]
[1764036532780,0.9354774,87847.0,87846.0,0.0023688]
[1764036533381,0.9354774,87847.0,87846.0,0.0607088]
[1764036533977,0.9344774,87847.0,87846.0,0.0607088]
[1764036534190,0.9354774,87847.0,87846.0,0.0607088]
[1764036534776,0.9354774,87847.0,87846.0,0.1189088]
[1764036534777,0.47409,87847.0,87846.0,0.1189088]
[1764036534980,1.10417,87847.0,87846.0,0.1189088]
[1764036535179,0.65417,87847.0,87846.0,0.1189088]
[1764036535475,0.3618,87847.0,87846.0,0.1189088]
[1764036535681,0.001,87847.0,87846.0,0.1189088]
[1764036536274,0.0113872,87849.0,87848.0,0.14017]
[1764036536568,0.3608,87855.0,87854.0,0.10748]
[1764036536771,0.3608,87855.0,87854.0,0.10967803]
[1764036536977,0.1914655,87862.0,87854.0,0.10967803]
[1764036536978,0.0113855,87862.0,87854.0,0.10967803]
[1764036537182,0.18008,87864.0,87862.0,0.1188654]
[1764036537380,0.18008,87864.0,87862.0,0.12106343]
[1764036537584,0.18008,87864.0,87862.0,0.10967803]
[1764036538690,0.3608,87865.0,87862.0,0.10967803]
[1764036539082,0.3608,87876.0,87875.0,0.10748]
[1764036539283,0.29,87876.0,87875.0,0.10967803]
[1764036539584,0.1213836,87876.0,87875.0,0.10967803]
[1764036540178,0.18008,87879.0,87878.0,0.10748]
[1764036540379,0.42837347,87884.0,87883.0,0.10748]
[1764036540680,0.05619077,87884.0,87883.0,0.10967803]
[1764036540982,0.35017077,87884.0,87883.0,0.10967803]
[1764036541188,0.11017077,87884.0,87883.0,0.10967803]
[1764036541782,0.37017077,87884.0,87883.0,0.10967803]
[1764036542176,0.11017077,87884.0,87883.0,0.10967803]
[1764036542576,0.39017077,87884.0,87883.0,0.10967803]
[1764036542985,0.11217077,87884.0,87883.0,0.10967803]
[1764036543185,0.36217077,87884.0,87883.0,0.10967803]
[1764036543790,0.36217077,87884.0,87883.0,0.00219803]
[1764036544289,0.38217077,87884.0,87883.0,0.05312803]
[1764036544479,0.38217077,87884.0,87883.0,0.10967803]
[1764036544991,0.38317077,87884.0,87883.0,0.10967803]
[1764036545178,0.38317077,87884.0,87883.0,0.05312803]
[1764036545380,0.0113843,87871.0,87867.0,0.00017077]
[1764036545691,0.3713843,87871.0,87870.0,0.00219803]
[1764036545888,0.1213843,87871.0,87870.0,0.00219803]
[1764036546191,0.1213846,87868.0,87867.0,0.00017077]
[1764036546390,0.12358263,87868.0,87867.0,0.00017077]
[1764036546696,0.41358263,87868.0,87867.0,0.00017077]
[1764036547190,0.1213854,87862.0,87861.0,0.3608]
[1764036547391,0.49358343,87862.0,87861.0,0.3608]
[1764036547685,0.49358343,87862.0,87861.0,0.41246267]
[1764036547885,0.40358343,87862.0,87861.0,0.36153267]
[1764036548086,0.12358343,87862.0,87861.0,0.36153267]
[1764036548485,0.37358343,87862.0,87861.0,0.00073267]
[1764036549384,0.12358343,87862.0,87861.0,0.00073267]
[1764036549583,0.12358343,87862.0,87861.0,0.05166267]
[1764036549783,0.12358343,87862.0,87861.0,0.00073267]
[1764036550287,0.12458343,87862.0,87861.0,0.00073267]
[1764036550591,0.39458343,87862.0,87861.0,0.00073267]
[1764036551491,0.39458343,87862.0,87853.0,0.00017077]
[1764036551492,0.1220665,87854.0,87853.0,0.00017077]
[1764036551796,0.12426453,87854.0,87853.0,0.05752344]
[1764036552186,0.12426453,87854.0,87853.0,0.11341344]
[1764036552995,0.11287803,87854.0,87853.0,0.11341344]
[1764036556196,0.05821803,87854.0,87853.0,0.11341344]
[1764036556393,0.00219803,87854.0,87853.0,0.11341344]
[1764036556793,0.18004,87861.0,87860.0,0.11251]
[1764036556794,0.11087,87861.0,87860.0,0.11251]
[1764036557098,0.00219803,87861.0,87860.0,0.11324267]
[1764036557400,0.11306803,87861.0,87860.0,0.11324267]
[1764036561391,0.00219803,87861.0,87860.0,0.11324267]
[1764036561792,0.00017077,87862.0,87861.0,0.1238955]
[1764036562098,0.05621,87899.0,87898.0,0.11251]
[1764036562302,0.13283803,87899.0,87898.0,0.00073267]
[1764036562596,0.1222522,87887.0,87886.0,0.3608]
[1764036562801,0.40445023,87887.0,87886.0,0.36153267]
[1764036563303,0.12445023,87887.0,87886.0,0.41815267]
[1764036564209,0.40445023,87887.0,87886.0,0.41815267]
[1764036564700,0.12445023,87887.0,87886.0,0.41815267]
[1764036564898,0.12445023,87887.0,87886.0,0.47404267]
[1764036565099,0.40445023,87887.0,87886.0,0.36153267]
[1764036565300,0.58445023,87887.0,87886.0,0.36153267]
[1764036565903,0.58445023,87887.0,87886.0,0.00073267]
[1764036566401,0.1222532,87879.0,87878.0,0.00017065]
[1764036566702,0.12445123,87879.0,87878.0,0.00090332]
[1764036566894,0.41445123,87879.0,87878.0,0.00090332]
[1764036567197,0.37445123,87879.0,87878.0,0.00090332]
[1764036568102,0.37445123,87879.0,87878.0,0.00017065]
[1764036568398,0.12445123,87879.0,87878.0,0.00017065]
[1764036568902,0.41445123,87879.0,87878.0,0.00017065]
[1764036569402,0.41445123,87879.0,87849.0,0.47331]
[1764036569403,0.11087,87850.0,87849.0,0.47331]
[1764036569697,0.11306803,87850.0,87849.0,0.00073267]
[1764036570891,0.11306803,87850.0,87849.0,0.11324267]
[1764036571404,0.11306803,87850.0,87849.0,0.00073267]
[1764036571795,0.11306803,87850.0,87849.0,0.11324267]
[1764036571997,0.00219803,87850.0,87849.0,0.11324267]
[1764036572303,0.11306803,87850.0,87849.0,0.11324267]
[1764036572505,0.39306803,87850.0,87849.0,0.00073267]
[1764036573002,0.11087,87845.0,87844.0,0.05675115]
[1764036573198,0.11306803,87845.0,87844.0,0.05748382]
[1764036573596,0.11306803,87845.0,87844.0,0.11337382]
[1764036574698,0.11306803,87845.0,87844.0,0.15419428]
[1764036575095,0.11306803,87845.0,87844.0,0.11337382]
[1764036575905,0.11306803,87845.0,87844.0,0.05748382]
[1764036576203,0.11306803,87845.0,87844.0,0.00086382]
[1764036576204,0.12445563,87845.0,87844.0,0.00086382]
[1764036576601,0.39445563,87845.0,87844.0,0.00086382]
[1764036576904,0.12445563,87845.0,87844.0,0.00086382]
[1764036577597,0.12445563,87845.0,87844.0,0.05748382]
[1764036578304,0.12445563,87845.0,87844.0,0.11337382]
[1764036578599,0.00219803,87845.0,87844.0,0.11337382]
[1764036579200,0.11087,87853.0,87852.0,0.11251]
[1764036579508,0.00219803,87853.0,87852.0,0.11324267]
[1764036579800,0.30291947,87880.0,87857.0,0.11251]
[1764036580000,0.18,87870.0,87857.0,0.11324267]
[1764036580200,0.18004,87871.0,87857.0,0.11324267]
[1764036580504,0.0113858,87860.0,87857.0,0.11324267]
[1764036580700,0.18004,87871.0,87857.0,0.11324267]
[1764036580894,0.0113849,87866.0,87857.0,0.15405657]
[1764036581095,0.0113853,87864.0,87857.0,0.11324267]
[1764036581395,0.18004,87871.0,87857.0,0.11324267]
[1764036582596,0.0113858,87859.0,87857.0,0.11324267]
[1764036582992,0.011385,87866.0,87857.0,0.11324267]
[1764036583196,0.18004,87871.0,87857.0,0.11324267]
[1764036584608,0.0113859,87859.0,87857.0,0.11324267]
[1764036585904,0.011385,87866.0,87857.0,0.11324267]
[1764036586103,0.18004,87871.0,87857.0,0.11324267]
[1764036586304,0.06066655,87858.0,87857.0,0.11324267]
[1764036586504,0.06286458,87858.0,87857.0,0.11324267]
[1764036586714,0.11818458,87858.0,87857.0,0.11324267]
[1764036588209,0.00017065,87858.0,87857.0,0.11324267]
[1764036588404,6.5e-07,87858.0,87857.0,0.11324267]
[1764036588597,0.46523,87875.0,87874.0,0.10078]
[1764036588803,0.46523,87875.0,87874.0,0.10151267]
[1764036588804,0.46742803,87875.0,87874.0,0.10151267]
[1764036590502,0.46742803,87875.0,87874.0,0.00073267]
[1764036590906,0.46742803,87875.0,87874.0,0.10151267]
[1764036591302,0.10662803,87875.0,87874.0,0.10151267]
[1764036591808,0.05130803,87875.0,87874.0,0.10151267]
[1764036593004,0.00017075,87883.0,87874.0,0.10151267]
[1764036593005,0.11598345,87883.0,87882.0,0.10078]
[1764036593214,0.11818148,87883.0,87882.0,0.10151267]
[1764036595112,0.11918148,87883.0,87882.0,0.10151267]
[1764036595509,0.10779878,87883.0,87882.0,0.10151267]
[1764036595714,0.00336878,87883.0,87882.0,0.10151267]
[1764036596115,0.09426878,87883.0,87882.0,0.10151267]
[1764036598905,0.00336878,87883.0,87882.0,0.10151267]
[1764036599101,0.00117075,87883.0,87882.0,0.10151267]
[1764036601013,0.01255345,87883.0,87882.0,0.10151267]
[1764036602911,0.00117075,87883.0,87882.0,0.10151267]
[1764036603704,0.40543,87905.0,87904.0,0.0941]
[1764036603909,0.80527783,87905.0,87904.0,0.09483267]
[1764036604920,0.80527783,87905.0,87904.0,0.00073267]
[1764036605309,0.80627783,87905.0,87904.0,0.00073267]
[1764036605711,0.80827783,87905.0,87904.0,0.00073267]
[1764036606612,0.80827783,87905.0,87904.0,0.04886267]
[1764036606813,0.80827783,87905.0,87904.0,0.09483267]
[1764036607019,0.10747783,87905.0,87904.0,0.09483267]
[1764036608123,0.05146803,87905.0,87904.0,0.09483267]
[1764036609015,0.09609803,87905.0,87904.0,0.45563267]
[1764036609221,0.05146803,87905.0,87904.0,0.45563267]
[1764036609412,0.00419803,87905.0,87904.0,0.45563267]
[1764036609609,0.05046803,87905.0,87904.0,0.45563267]
[1764036609814,0.04846803,87905.0,87904.0,0.45563267]
[1764036610025,0.0113795,87908.0,87907.0,0.0941]
[1764036610211,0.01357753,87908.0,87907.0,0.09483267]
[1764036610416,0.05984753,87908.0,87907.0,0.09483267]
[1764036610724,0.10447753,87908.0,87907.0,0.09483267]
[1764036611725,0.10547753,87908.0,87907.0,0.09483267]
[1764036612718,0.09409803,87908.0,87907.0,0.09483267]
[1764036612919,0.04946803,87908.0,87907.0,0.09483267]
[1764036613126,0.09494803,87908.0,87907.0,0.09483267]
[1764036613326,0.53494803,87908.0,87907.0,0.00073267]
[1764036613520,0.0989609,87897.0,87896.0,0.45357064]
[1764036613827,0.10115893,87897.0,87896.0,0.45430331]
[1764036615222,0.08977803,87897.0,87896.0,0.46568431]
[1764036615617,0.08977803,87897.0,87896.0,0.45430331]
[1764036620624,0.00219803,87897.0,87896.0,0.46568431]
[1764036621027,0.08977803,87897.0,87896.0,0.45430331]
[1764036621230,0.50977803,87897.0,87896.0,0.36097064]
[1764036621426,0.50977803,87897.0,87896.0,0.00017064]
[1764036621633,0.68969803,87897.0,87896.0,0.00017064]
[1764036621832,0.08758,87878.0,87877.0,0.4534]
[1764036622033,0.08977803,87878.0,87877.0,0.45413267]
[1764036622832,0.10116133,87878.0,87877.0,0.45413267]
[1764036624240,0.04429803,87878.0,87877.0,0.45413267]
[1764036624534,0.00219803,87878.0,87877.0,0.45413267]
[1764036629835,0.00017064,87886.0,87885.0,0.1258124]
[1764036630036,0.00017064,87886.0,87885.0,0.48734507]
[1764036631137,0.00017064,87886.0,87885.0,0.47596267]
[1764036631331,0.08994867,87886.0,87885.0,0.45413267]
[1764036632437,0.08994867,87886.0,87885.0,0.51549498]
[1764036633136,0.08994867,87886.0,87885.0,0.45413267]
[1764036633343,0.00236867,87886.0,87885.0,0.48145267]
[1764036634139,0.04446867,87886.0,87885.0,0.48145267]
[1764036635536,0.00236867,87886.0,87885.0,0.48145267]
[1764036635740,0.00017064,87886.0,87885.0,0.48145267]
[1764036636437,0.0113811,87896.0,87892.0,0.02732]
[1764036636639,0.0113811,87896.0,87895.0,0.45413267]
[1764036637441,0.0113811,87896.0,87895.0,0.46551377]
[1764036637839,0.0123811,87896.0,87895.0,0.46551377]
[1764036638330,0.001,87896.0,87895.0,0.45413267]
[1764036638535,0.001,87896.0,87895.0,0.51548933]
[1764036638745,0.001,87896.0,87895.0,0.45413267]
[1764036639264,0.00017026,87904.0,87903.0,0.1039801]
[1764036639540,0.00017026,87904.0,87903.0,0.46551277]
[1764036642647,0.00017026,87904.0,87903.0,0.87551277]
[1764036643142,0.0970879,87920.0,87919.0,0.08611]
[1764036643347,0.09928593,87920.0,87919.0,0.08684267]
[1764036644541,0.08790803,87920.0,87919.0,0.08684267]
[1764036644843,0.08890803,87920.0,87919.0,0.08684267]
[1764036645348,0.10128593,87920.0,87919.0,0.08684267]
[1764036647441,0.08990803,87920.0,87919.0,0.08684267]
[1764036648744,0.00419803,87920.0,87919.0,0.08684267]
[1764036649854,0.04573803,87920.0,87919.0,0.08684267]
[1764036650346,0.08990803,87920.0,87919.0,0.08684267]
[1764036650552,0.37990803,87920.0,87919.0,0.08684267]
[1764036650952,0.08990803,87920.0,87919.0,0.08684267]
[1764036657352,0.14990803,87920.0,87919.0,0.08684267]
[1764036657557,0.08990803,87920.0,87919.0,0.08684267]
[1764036658754,0.08890803,87920.0,87919.0,0.08684267]
[1764036659956,0.00219803,87920.0,87919.0,0.08684267]
[1764036660955,0.03724,87934.0,87933.0,0.07442]
[1764036661144,0.3608,87942.0,87933.0,0.43595267]
[1764036661349,0.0864436,87954.0,87948.0,0.0236]
[1764036661549,0.0864436,87954.0,87953.0,0.07515267]
[1764036661550,0.08864153,87954.0,87953.0,0.07515267]
[1764036661763,0.07726803,87954.0,87953.0,0.07515267]
[1764036662552,0.00219803,87954.0,87953.0,0.07515267]
[1764036662848,0.07726803,87954.0,87953.0,0.07515267]
[1764036663055,0.07826803,87954.0,87953.0,0.07515267]
[1764036663455,0.07926803,87954.0,87953.0,0.07515267]
[1764036665048,0.07926803,87954.0,87953.0,0.00073267]
[1764036665360,0.31926803,87954.0,87953.0,0.00073267]
[1764036666159,0.0864462,87933.0,87932.0,0.07442]
[1764036666360,0.08864423,87933.0,87932.0,0.07515267]
[1764036668353,0.08864423,87933.0,87932.0,0.00073267]
[1764036668861,0.08864423,87933.0,87932.0,0.03861267]
[1764036669061,0.08864423,87933.0,87932.0,0.07515267]
[1764036669563,0.07726803,87933.0,87932.0,0.07515267]
[1764036669955,0.00219803,87933.0,87932.0,0.08652907]
[1764036670763,0.0482048,87944.0,87943.0,0.07578]
[1764036671069,0.05040283,87944.0,87943.0,0.07651267]
[1764036671264,0.00219803,87944.0,87943.0,0.07651267]
[1764036672856,0.03902803,87944.0,87943.0,0.07651267]
[1764036673255,0.00219803,87944.0,87943.0,0.07651267]
[1764036673760,0.07549803,87944.0,87943.0,0.07651267]
[1764036674160,0.31549803,87944.0,87943.0,0.00073267]
[1764036674760,0.31549803,87944.0,87929.0,0.07595064]
[1764036674761,0.0846766,87930.0,87929.0,0.07595064]
[1764036674961,0.05040463,87930.0,87929.0,0.07668331]
[1764036675369,0.08687463,87930.0,87929.0,0.07668331]
[1764036675560,0.34687463,87930.0,87929.0,0.07668331]
[1764036675765,0.34687463,87930.0,87929.0,0.00090331]
[1764036675766,0.32687463,87930.0,87929.0,0.00090331]
[1764036675965,0.37687463,87930.0,87929.0,0.00090331]
[1764036676161,0.08687463,87930.0,87929.0,0.00017064]
[1764036676360,0.08687463,87930.0,87929.0,0.03917331]
[1764036676663,0.08687463,87930.0,87929.0,0.07668331]
[1764036677060,0.33687463,87930.0,87929.0,0.00090331]
[1764036677663,0.35687463,87930.0,87929.0,0.00090331]
[1764036678063,0.08687463,87930.0,87929.0,0.00090331]
[1764036678365,0.08687463,87930.0,87929.0,0.07668331]
[1764036680168,0.00219803,87930.0,87929.0,0.07668331]
[1764036682073,0.03902803,87930.0,87929.0,0.07668331]
[1764036682274,0.00219803,87930.0,87929.0,0.07668331]
[1764036683064,0.03902803,87930.0,87929.0,0.07668331]
[1764036684071,0.00219803,87930.0,87929.0,0.07668331]
[1764036684868,0.4341,87936.0,87935.0,0.07578]
[1764036685070,0.43629803,87936.0,87935.0,0.07651267]
[1764036685467,0.39982803,87936.0,87935.0,0.07651267]
[1764036685676,0.00219803,87936.0,87935.0,0.08788867]
[1764036686274,0.00219803,87936.0,87935.0,0.07651267]
[1764036686275,0.07549803,87936.0,87935.0,0.07651267]
[1764036687182,0.07549803,87936.0,87935.0,0.11739591]
[1764036688082,0.00219803,87936.0,87935.0,0.12877191]
[1764036688275,0.00219803,87936.0,87935.0,0.08788867]
[1764036688474,0.07549803,87936.0,87935.0,0.07651267]
[1764036689377,0.00219803,87936.0,87935.0,0.07651267]
[1764036689572,0.03902803,87936.0,87935.0,0.07651267]
[1764036689775,0.07549803,87936.0,87935.0,0.07651267]
[1764036690886,0.0846754,87940.0,87939.0,0.07578]
[1764036691078,0.08687343,87940.0,87939.0,0.07651267]
[1764036692279,0.33687343,87940.0,87939.0,0.07651267]
[1764036692789,0.34687343,87940.0,87939.0,0.07651267]
[1764036692986,0.34687343,87940.0,87939.0,0.03900267]
[1764036693186,0.08687343,87940.0,87939.0,0.07651267]
[1764036694189,0.00219803,87940.0,87939.0,0.07651267]
[1764036694688,0.00319803,87940.0,87939.0,0.07651267]
[1764036694884,0.04002803,87940.0,87939.0,0.11741185]
[1764036695282,0.04002803,87940.0,87939.0,0.07651267]
[1764036696090,0.07649803,87940.0,87939.0,0.07651267]
[1764036696479,0.04002803,87940.0,87939.0,0.07651267]
[1764036697276,0.04002803,87940.0,87939.0,0.11742021]
[1764036697482,0.00319803,87940.0,87939.0,0.07651267]
[1764036697686,0.04002803,87940.0,87939.0,0.07651267]
[1764036698285,0.07649803,87940.0,87939.0,0.07651267]
[1764036699491,0.00319803,87940.0,87939.0,0.07651267]
[1764036699794,0.07649803,87940.0,87939.0,0.07651267]
[1764036700091,0.04002803,87940.0,87939.0,0.07651267]
[1764036700289,0.07649803,87940.0,87939.0,0.07651267]
[1764036701392,0.04002803,87940.0,87939.0,0.07651267]
[1764036701586,0.07777803,87940.0,87939.0,0.07651267]
[1764036703794,0.00319803,87940.0,87939.0,0.07651267]
[1764036704094,0.03496803,87940.0,87939.0,0.07651267]
[1764036704393,0.07271803,87940.0,87939.0,0.07651267]
[1764036706596,0.03277,87940.0,87939.0,0.07651267]
[1764036706894,0.001,87940.0,87939.0,0.11741814]
[1764036707099,0.001,87940.0,87939.0,0.07651267]
[1764036707397,0.001,87940.0,87939.0,0.46651267]
[1764036707697,0.001,87940.0,87939.0,0.07651267]
[1764036708089,0.0113746,87946.0,87939.0,0.07651267]
[1764036708287,0.0113746,87946.0,87945.0,0.43296]
[1764036708482,0.0113746,87946.0,87945.0,0.44506737]
[1764036708696,0.0808946,87946.0,87945.0,0.43369267]
[1764036708992,0.08309263,87946.0,87945.0,0.43369267]
[1764036709584,0.0113744,87948.0,87945.0,0.43369267]
[1764036709790,0.37190729,87958.0,87945.0,0.43369267]
[1764036709791,0.07171803,87956.0,87955.0,0.07216]
[1764036710099,0.08309133,87956.0,87955.0,0.07289267]
[1764036710795,0.49309133,87956.0,87955.0,0.07289267]
[1764036711098,0.49409133,87956.0,87955.0,0.07289267]
[1764036711596,0.49409133,87956.0,87955.0,0.00073267]
[1764036711896,0.0926443,87948.0,87947.0,0.00017054]
[1764036712097,0.53484233,87948.0,87947.0,0.00090321]
[1764036712992,0.89564233,87948.0,87947.0,0.00017054]
[1764036713191,0.89664233,87948.0,87947.0,5.4e-07]
[1764036714901,0.0808956,87938.0,87937.0,0.04089736]
[1764036715203,0.0808958,87936.0,87935.0,0.04089736]
[1764036715500,0.53309383,87936.0,87935.0,0.04163003]
[1764036715701,0.51309383,87936.0,87935.0,0.11379003]
[1764036715896,0.45309383,87936.0,87935.0,0.11379003]
[1764036716401,0.08309383,87936.0,87935.0,0.11379003]
[1764036716602,0.51309383,87936.0,87935.0,0.11379003]
[1764036716803,0.51409383,87936.0,87935.0,0.11379003]
[1764036717298,0.51309383,87936.0,87935.0,0.11379003]
[1764036719303,0.51309383,87936.0,87935.0,0.07289267]
[1764036721494,0.06163,87935.0,87934.0,0.04089736]
[1764036721810,0.0730061,87934.0,87933.0,0.04089736]
[1764036722003,0.48520413,87934.0,87933.0,0.04089736]
[1764036722306,0.48520413,87934.0,87933.0,0.00073267]
[1764036722694,0.06382803,87934.0,87933.0,0.10220003]
[1764036724807,0.06382803,87934.0,87933.0,0.06130267]
[1764036725711,0.06382803,87934.0,87933.0,0.07267887]
[1764036726000,0.00219803,87934.0,87933.0,0.07267887]
[1764036726404,0.06382803,87934.0,87933.0,0.06130267]
[1764036726799,0.42243,87941.0,87940.0,0.06057]
[1764036727111,0.06382803,87941.0,87940.0,0.06130267]
[1764036728809,0.00219803,87941.0,87940.0,0.06130267]
[1764036729009,0.03311803,87941.0,87940.0,0.06130267]
[1764036729206,0.39151,87952.0,87951.0,0.06057]
[1764036729408,0.43600183,87952.0,87951.0,0.06130267]
[1764036730410,0.03411803,87952.0,87951.0,0.06130267]
[1764036730618,0.002,87952.0,87951.0,0.06130267]
[1764036733411,0.0429738,87952.0,87951.0,0.06130267]
[1764036734006,0.0751838,87952.0,87951.0,0.06130267]
[1764036734206,0.0316,87952.0,87951.0,0.06130267]
[1764036734407,0.06381,87952.0,87951.0,0.06130267]
[1764036737014,0.06600803,87952.0,87951.0,0.06130267]
[1764036738419,0.06600803,87952.0,87951.0,0.46296217]
[1764036738613,0.002,87952.0,87951.0,0.81210267]
[1764036738813,0.0007352,87952.0,87951.0,0.42210267]
[1764036739810,0.0007352,87952.0,87951.0,0.84210267]
[1764036740116,0.0007352,87952.0,87951.0,0.42210267]
[1764036742316,0.06474323,87952.0,87951.0,0.46292575]
[1764036744518,0.06474323,87952.0,87951.0,0.42210267]
[1764036746112,0.28474323,87952.0,87951.0,0.42210267]
[1764036746316,0.06474323,87952.0,87951.0,0.42210267]
[1764036747518,0.06400803,87952.0,87951.0,0.42210267]
[1764036748720,0.32400803,87952.0,87951.0,0.42210267]
[1764036748912,0.32400803,87952.0,87951.0,0.39148267]
[1764036749820,0.32400803,87952.0,87951.0,0.42163267]
[1764036750719,0.0113756,87939.0,87938.0,0.06185]
[1764036750924,0.53538363,87939.0,87938.0,0.03243267]
[1764036751712,0.53538363,87939.0,87938.0,0.00073267]
[1764036751917,0.07538363,87939.0,87938.0,0.00073267]
[1764036752127,0.51538363,87939.0,87938.0,0.00073267]
[1764036753416,0.51538363,87939.0,87938.0,0.03243267]
[1764036754011,0.51538363,87939.0,87938.0,0.00073267]
[1764036754711,0.06181,87928.0,87927.0,0.06202054]
[1764036754924,0.06400803,87928.0,87927.0,0.06275321]
[1764036755436,0.31400803,87928.0,87927.0,0.00017054]
[1764036756029,0.32521087,87928.0,87927.0,0.00017054]
[1764036756429,0.33400803,87928.0,87927.0,0.00017054]
[1764036756632,0.33400803,87928.0,87927.0,0.00090321]
[1764036757330,0.33400803,87928.0,87927.0,0.03260321]
[1764036757528,0.51400803,87928.0,87927.0,0.00017054]
[1764036758632,0.87480803,87928.0,87927.0,0.00017054]
[1764036760336,0.87580803,87928.0,87927.0,0.00017054]
[1764036760532,0.88580803,87928.0,87927.0,0.00017054]
[1764036762338,0.88480803,87928.0,87927.0,0.00017054]
[1764036763927,1.06452803,87928.0,87927.0,0.00017054]
[1764036766545,0.0693886,87915.0,87914.0,0.10087585]
[1764036766732,0.06020803,87915.0,87914.0,0.06074267]
[1764036767131,0.06020803,87915.0,87914.0,0.10160852]
[1764036767332,0.06020803,87915.0,87914.0,0.06074267]
[1764036768345,0.00219803,87915.0,87914.0,0.06074267]
[1764036774149,0.06020803,87915.0,87914.0,0.06074267]
[1764036774846,0.06020803,87915.0,87914.0,0.12207873]
[1764036775442,0.06020803,87915.0,87914.0,0.06074267]
[1764036776941,0.06020803,87915.0,87914.0,0.02915267]
[1764036777140,0.05402,87913.0,87911.0,0.0612613]
[1764036777347,0.05402,87907.0,87906.0,0.00017054]
[1764036777541,0.05402,87899.0,87898.0,0.06128169]
[1764036777746,0.065401,87896.0,87895.0,0.02514]
[1764036777953,0.06759903,87896.0,87895.0,0.05246267]
[1764036779253,0.06759903,87896.0,87893.0,0.3608]
[1764036779254,0.06548,87894.0,87893.0,0.3608]
[1764036779555,0.05402,87891.0,87890.0,0.05173]
[1764036779754,0.05621803,87891.0,87890.0,0.06384447]
[1764036779942,0.00219803,87891.0,87890.0,0.06384447]
[1764036780146,0.41482,87903.0,87902.0,0.0631102]
[1764036780347,0.41701803,87903.0,87902.0,0.06384287]
[1764036780548,0.05621803,87903.0,87902.0,0.05246267]
[1764036781047,0.05621803,87903.0,87902.0,0.34246267]
[1764036781448,0.05621803,87903.0,87902.0,0.40374436]
[1764036781864,0.00219803,87903.0,87902.0,0.11374436]
[1764036782055,0.00219803,87903.0,87902.0,0.05246267]
[1764036784560,0.0384793,87910.0,87909.0,0.05173]
[1764036784864,0.04067733,87910.0,87909.0,0.05246267]
[1764036785359,0.04067733,87910.0,87909.0,0.33246267]
[1764036785554,0.04067733,87910.0,87909.0,0.05246267]
[1764036785753,0.00219803,87910.0,87909.0,0.05246267]
[1764036786153,0.05621803,87910.0,87909.0,0.05246267]
[1764036786861,0.02929803,87910.0,87909.0,0.05246267]
[1764036787963,0.45621803,87910.0,87909.0,0.05246267]
[1764036788361,0.05621803,87910.0,87909.0,0.09335139]
[1764036789456,0.05621803,87910.0,87909.0,0.05246267]
[1764036790559,0.00219803,87910.0,87909.0,0.50246267]
[1764036790756,0.00219803,87910.0,87909.0,0.05246267]
[1764036790961,0.00017054,87915.0,87914.0,0.0635487]
[1764036791162,0.02622857,87915.0,87914.0,0.41370267]
[1764036791357,0.05262857,87915.0,87914.0,0.41370267]
[1764036791661,0.05262857,87915.0,87914.0,0.69370267]
[1764036791860,0.05262857,87915.0,87914.0,0.41370267]
[1764036792060,0.86342857,87915.0,87914.0,0.00073267]
[1764036792259,0.86342857,87915.0,87906.0,0.37677065]
[1764036792260,0.05026,87911.0,87910.0,0.06131892]
[1764036792460,0.06383713,87911.0,87910.0,0.00073267]
[1764036792859,0.05026,87907.0,87906.0,0.00017065]
[1764036793163,0.84325803,87907.0,87906.0,0.00017065]
[1764036793963,0.0616405,87900.0,87899.0,0.04088727]
[1764036794263,0.0616409,87897.0,87896.0,0.04088727]
[1764036794459,0.44383893,87897.0,87896.0,0.04088727]
[1764036794856,0.0616415,87892.0,87891.0,0.41369]
[1764036795057,0.06383953,87892.0,87891.0,0.41369]
[1764036795863,0.06383953,87892.0,87891.0,0.41442267]
[1764036797860,0.06383953,87892.0,87891.0,0.69442267]
[1764036798059,0.06383953,87892.0,87891.0,0.41442267]
[1764036798259,0.06383953,87892.0,87891.0,0.42442267]
[1764036798464,0.06383953,87892.0,87891.0,0.41442267]
[1764036799370,0.05245803,87892.0,87891.0,0.41442267]
[1764036799763,0.00219803,87892.0,87891.0,0.41442267]